[Event "Early-Titled-Tuesday-Blitz-February-20-2024"]
[Site "Chess.com"]
[Date "2024.02.20"]
[Round "1"]
[White "ATM622"]
[Black "Kirill_Klukin"]
[Result "0-1"]
[WhiteElo "2482"]
[BlackElo "2863"]
[TimeControl "180+1"]
[EndTime "8:08:31 PST"]
[Termination "Kirill_Klukin won by resignation"]

1. d4 {[%clk 0:03:00.9]} 1... Nf6 {[%clk 0:02:57.1]} 2. c4 {[%clk 0:03:00.4]}
2... Nc6 {[%clk 0:02:57.5]} 3. Nf3 {[%clk 0:02:59.3]} 3... e6 {[%clk 0:02:57.4]}
4. Nc3 {[%clk 0:02:58.2]} 4... Bb4 {[%clk 0:02:57.9]} 5. Bd2 {[%clk 0:02:56.8]}
5... O-O {[%clk 0:02:57.6]} 6. Qc2 {[%clk 0:02:55]} 6... d6 {[%clk 0:02:57.3]}
7. e3 {[%clk 0:02:50.1]} 7... e5 {[%clk 0:02:49.6]} 8. O-O-O {[%clk 0:02:36]}
8... exd4 {[%clk 0:02:41]} 9. exd4 {[%clk 0:02:33.2]} 9... Bg4 {[%clk
0:02:39.2]} 10. Bg5 {[%clk 0:02:25]} 10... h6 {[%clk 0:02:34.4]} 11. Bxf6 {[%clk
0:02:18.4]} 11... Qxf6 {[%clk 0:02:32.3]} 12. Nd5 {[%clk 0:02:18.3]} 12... Qd8
{[%clk 0:01:50.2]} 13. a3 {[%clk 0:02:14.3]} 13... Ba5 {[%clk 0:01:43]} 14. b4
{[%clk 0:02:13.6]} 14... Bb6 {[%clk 0:01:39.5]} 15. c5 {[%clk 0:02:13.4]} 15...
a5 {[%clk 0:01:28.3]} 16. cxb6 {[%clk 0:02:10.8]} 16... Bxf3 {[%clk 0:01:26.6]}
17. gxf3 {[%clk 0:01:49.1]} 17... axb4 {[%clk 0:01:26.6]} 18. bxc7 {[%clk
0:01:48]} 18... Qg5+ {[%clk 0:01:26.4]} 19. Ne3 {[%clk 0:01:42.1]} 19... bxa3
{[%clk 0:00:41.9]} 20. Kb1 {[%clk 0:01:21.9]} 20... Rfc8 {[%clk 0:00:25.2]} 21.
Qf5 {[%clk 0:01:01.1]} 21... Qxf5+ {[%clk 0:00:09.6]} 22. Nxf5 {[%clk
0:01:00.8]} 22... Rxc7 {[%clk 0:00:10.5]} 23. Nxd6 {[%clk 0:01:00.6]} 23... a2+
{[%clk 0:00:09.5]} 24. Ka1 {[%clk 0:00:58.8]} 24... Nb4 {[%clk 0:00:10.1]} 25.
Bd3 {[%clk 0:00:56.7]} 25... Rc3 {[%clk 0:00:05]} 26. Be4 {[%clk 0:00:51.4]}
26... Rd8 {[%clk 0:00:03.5]} 27. Nxb7 {[%clk 0:00:44.6]} 27... Re8 {[%clk
0:00:03.6]} 28. Nc5 {[%clk 0:00:38.9]} 28... Ra3 {[%clk 0:00:03.1]} 29. Rc1
{[%clk 0:00:27.5]} 29... Rb8 {[%clk 0:00:03.4]} 30. Rhe1 {[%clk 0:00:22.1]}
30... g6 {[%clk 0:00:03.9]} 31. Re3 {[%clk 0:00:21.7]} 31... Ra5 {[%clk
0:00:04]} 32. Rb3 {[%clk 0:00:19.1]} 32... Rab5 {[%clk 0:00:04.6]} 33. Rc4
{[%clk 0:00:18.5]} 33... f5 {[%clk 0:00:04.2]} 34. Nd7 {[%clk 0:00:07.6]} 34...
Nc2+ {[%clk 0:00:03.7]} 35. Bxc2 {[%clk 0:00:07.2]} 35... Rxb3 {[%clk
0:00:04.5]} 36. Bxb3 {[%clk 0:00:07.6]} 36... Rxb3 {[%clk 0:00:04.5]} 37. Kxa2
{[%clk 0:00:07.6]} 37... Rxf3 {[%clk 0:00:05.3]} 38. Rc7 {[%clk 0:00:05.3]}
38... Rxf2+ {[%clk 0:00:05.3]} 39. Kb3 {[%clk 0:00:05.5]} 39... Kf7 {[%clk
0:00:06]} 40. d5 {[%clk 0:00:05.4]} 40... Rxh2 {[%clk 0:00:05.5]} 41. Kc4 {[%clk
0:00:04.3]} 41... Rd2 {[%clk 0:00:05]} 42. Ne5+ {[%clk 0:00:02.6]} 42... Kf6
{[%clk 0:00:05.2]} 43. Nc6 {[%clk 0:00:02.9]} 43... f4 {[%clk 0:00:05.3]} 44.
Rc8 {[%clk 0:00:02.9]} 44... Kg7 {[%clk 0:00:05.1]} 45. Rc7+ {[%clk 0:00:02.7]}
45... Kf6 {[%clk 0:00:05.7]} 46. Rc8 {[%clk 0:00:03.2]} 46... Kg7 {[%clk
0:00:06.1]} 47. Kc5 {[%clk 0:00:03.6]} 47... f3 {[%clk 0:00:06.4]} 48. Rc7+
{[%clk 0:00:01.7]} 48... Kf6 {[%clk 0:00:06.8]} 49. Rc8 {[%clk 0:00:02.1]} 49...
Kg7 {[%clk 0:00:07.1]} 50. Rc7+ {[%clk 0:00:02.3]} 50... Kg8 {[%clk 0:00:07.5]}
51. Nd8 {[%clk 0:00:02.3]} 51... Rc2+ {[%clk 0:00:06.1]} 52. Kd6 {[%clk
0:00:02.4]} 52... Rxc7 {[%clk 0:00:06.8]} 53. Kxc7 {[%clk 0:00:03.3]} 53... f2
{[%clk 0:00:07.5]} 54. d6 {[%clk 0:00:03.9]} 54... f1=Q {[%clk 0:00:08.1]} 55.
d7 {[%clk 0:00:04.8]} 55... Qf4+ {[%clk 0:00:08.6]} 56. Kc8 {[%clk 0:00:04.9]}
56... Qc4+ {[%clk 0:00:08.2]} 57. Kb7 {[%clk 0:00:05.2]} 57... Qd5+ {[%clk
0:00:06.7]} 58. Kc7 {[%clk 0:00:05.4]} 58... Qe5+ {[%clk 0:00:07.1]} 59. Kb7
{[%clk 0:00:04.9]} 59... Qe7 {[%clk 0:00:07.4]} 60. Kc8 {[%clk 0:00:04.8]} 60...
Qd6 {[%clk 0:00:07.4]} 61. Nb7 {[%clk 0:00:01.2]} 61... Qc6+ {[%clk 0:00:07.9]}
62. Kb8 {[%clk 0:00:01.7]} 62... Qxd7 {[%clk 0:00:07.7]} 0-1

[Event "Early-Titled-Tuesday-Blitz-February-20-2024"]
[Site "Chess.com"]
[Date "2024.02.20"]
[Round "1"]
[White "Grande_Strategia"]
[Black "lucasran"]
[Result "0-1"]
[WhiteElo "2254"]
[BlackElo "2652"]
[TimeControl "180+1"]
[EndTime "8:08:33 PST"]
[Termination "lucasran won by checkmate"]

1. f3 {[%clk 0:02:59]} 1... e5 {[%clk 0:02:58.1]} 2. Kf2 {[%clk 0:02:59]} 2...
Nc6 {[%clk 0:02:57.7]} 3. g3 {[%clk 0:02:58.8]} 3... Nf6 {[%clk 0:02:57.2]} 4.
Bh3 {[%clk 0:02:58.8]} 4... Bc5+ {[%clk 0:02:56.9]} 5. Kg2 {[%clk 0:02:59]} 5...
d5 {[%clk 0:02:52.3]} 6. d3 {[%clk 0:02:59.3]} 6... Qe7 {[%clk 0:02:49.3]} 7.
Bg5 {[%clk 0:02:56]} 7... h6 {[%clk 0:02:49.1]} 8. Bxf6 {[%clk 0:02:55.5]} 8...
Qxf6 {[%clk 0:02:50]} 9. e4 {[%clk 0:02:51.2]} 9... Bxh3+ {[%clk 0:02:21.2]} 10.
Nxh3 {[%clk 0:02:52.1]} 10... O-O-O {[%clk 0:02:21.5]} 11. Nc3 {[%clk
0:02:45.3]} 11... dxe4 {[%clk 0:02:16.9]} 12. fxe4 {[%clk 0:02:46.2]} 12... Qe6
{[%clk 0:02:10.7]} 13. Rf1 {[%clk 0:02:42.5]} 13... Nd4 {[%clk 0:01:59.6]} 14.
Ne2 {[%clk 0:02:31.9]} 14... Nc6 {[%clk 0:01:41.8]} 15. a3 {[%clk 0:02:10.8]}
15... f6 {[%clk 0:01:41.1]} 16. b4 {[%clk 0:02:10.3]} 16... Bb6 {[%clk
0:01:41.7]} 17. Qe1 {[%clk 0:01:48.4]} 17... h5 {[%clk 0:01:38.5]} 18. a4 {[%clk
0:01:39.6]} 18... h4 {[%clk 0:01:36]} 19. Rh1 {[%clk 0:01:32.2]} 19... Qg4
{[%clk 0:01:23.2]} 20. a5 {[%clk 0:01:06.9]} 20... Be3 {[%clk 0:01:18.1]} 21. b5
{[%clk 0:00:52.3]} 21... Nb4 {[%clk 0:01:05.8]} 22. Qd1 {[%clk 0:00:18.3]} 22...
f5 {[%clk 0:00:31.8]} 23. Nc3 {[%clk 0:00:16]} 23... Bd4 {[%clk 0:00:15.7]} 24.
Nf2 {[%clk 0:00:03.7]} 24... h3+ {[%clk 0:00:14.7]} 25. Kf1 {[%clk 0:00:03.9]}
25... Qxd1+ {[%clk 0:00:08.6]} 26. Nfxd1 {[%clk 0:00:04.6]} 26... Nxc2 {[%clk
0:00:09]} 27. Rc1 {[%clk 0:00:04.3]} 27... Nb4 {[%clk 0:00:08.5]} 28. Nd5 {[%clk
0:00:04.3]} 28... Nxd5 {[%clk 0:00:08.5]} 29. exd5 {[%clk 0:00:04.5]} 29... Rxd5
{[%clk 0:00:09.4]} 30. Ke2 {[%clk 0:00:05.2]} 30... Rxb5 {[%clk 0:00:09.6]} 31.
Rc2 {[%clk 0:00:05.8]} 31... Rxa5 {[%clk 0:00:09.7]} 32. Rf1 {[%clk 0:00:06.2]}
32... g6 {[%clk 0:00:08.6]} 33. Ne3 {[%clk 0:00:02.3]} 33... Bxe3 {[%clk
0:00:09]} 34. Kxe3 {[%clk 0:00:03.2]} 34... Rd8 {[%clk 0:00:09.1]} 35. g4 {[%clk
0:00:03.6]} 35... Ra3 {[%clk 0:00:07.7]} 36. gxf5 {[%clk 0:00:02.6]} 36...
Raxd3+ {[%clk 0:00:07.5]} 37. Ke2 {[%clk 0:00:03.2]} 37... gxf5 {[%clk
0:00:07.2]} 38. Rxf5 {[%clk 0:00:04.1]} 38... a6 {[%clk 0:00:07.3]} 39. Rxe5
{[%clk 0:00:04.5]} 39... Rd1 {[%clk 0:00:06.3]} 40. Re7 {[%clk 0:00:04.5]} 40...
R1d7 {[%clk 0:00:06.2]} 41. Re3 {[%clk 0:00:04.8]} 41... Rg8 {[%clk 0:00:05.3]}
42. Kf1 {[%clk 0:00:02.9]} 42... Rd1+ {[%clk 0:00:05.1]} 43. Ke2 {[%clk
0:00:03.2]} 43... Rdg1 {[%clk 0:00:04.5]} 44. Kd3 {[%clk 0:00:03.4]} 44... R1g2
{[%clk 0:00:03.9]} 45. Rc4 {[%clk 0:00:03.7]} 45... Rd8+ {[%clk 0:00:04]} 46.
Kc3 {[%clk 0:00:03.8]} 46... Rxh2 {[%clk 0:00:04.3]} 47. Re7 {[%clk 0:00:04.4]}
47... c6 {[%clk 0:00:04.7]} 48. Rb4 {[%clk 0:00:04.8]} 48... Rd7 {[%clk
0:00:05.2]} 49. Re8+ {[%clk 0:00:04.8]} 49... Kc7 {[%clk 0:00:05.9]} 50. Re6
{[%clk 0:00:05]} 50... Ra2 {[%clk 0:00:05.5]} 51. Rh4 {[%clk 0:00:05.9]} 51...
Ra3+ {[%clk 0:00:05.8]} 52. Kb4 {[%clk 0:00:06.5]} 52... Rad3 {[%clk 0:00:05.8]}
53. Reh6 {[%clk 0:00:07]} 53... R3d4+ {[%clk 0:00:06.2]} 54. Kc5 {[%clk
0:00:07.9]} 54... Rxh4 {[%clk 0:00:06.4]} 55. Rxc6+ {[%clk 0:00:08.1]} 55... Kb8
{[%clk 0:00:05.9]} 56. Rc8+ {[%clk 0:00:07.2]} 56... Kxc8 {[%clk 0:00:06.1]} 57.
Kb6 {[%clk 0:00:07.3]} 57... Rd6+ {[%clk 0:00:06.7]} 58. Ka7 {[%clk 0:00:08.2]}
58... Kc7 {[%clk 0:00:06]} 59. Ka8 {[%clk 0:00:09.1]} 59... b5 {[%clk
0:00:04.7]} 60. Ka7 {[%clk 0:00:10]} 60... b4 {[%clk 0:00:04.9]} 61. Ka8 {[%clk
0:00:10.8]} 61... b3 {[%clk 0:00:05.5]} 62. Ka7 {[%clk 0:00:11.7]} 62... a5
{[%clk 0:00:06.2]} 63. Ka8 {[%clk 0:00:12.6]} 63... a4 {[%clk 0:00:07]} 64. Ka7
{[%clk 0:00:13.5]} 64... a3 {[%clk 0:00:07.8]} 65. Ka8 {[%clk 0:00:14.4]} 65...
a2 {[%clk 0:00:08.6]} 66. Ka7 {[%clk 0:00:15.3]} 66... a1=Q# {[%clk 0:00:09.4]}
0-1

[Event "Early-Titled-Tuesday-Blitz-February-20-2024"]
[Site "Chess.com"]
[Date "2024.02.20"]
[Round "1"]
[White "Larina_Maria"]
[Black "Kotlyar_K"]
[Result "1-0"]
[WhiteElo "2292"]
[BlackElo "2609"]
[TimeControl "180+1"]
[EndTime "8:08:42 PST"]
[Termination "Larina_Maria won by resignation"]

1. e4 {[%clk 0:02:59.3]} 1... e5 {[%clk 0:02:58.8]} 2. Nf3 {[%clk 0:02:58.4]}
2... Nc6 {[%clk 0:02:56.8]} 3. Nc3 {[%clk 0:02:58]} 3... Nf6 {[%clk 0:02:56.6]}
4. Bb5 {[%clk 0:02:57.8]} 4... Bb4 {[%clk 0:02:46.3]} 5. O-O {[%clk 0:02:57.4]}
5... O-O {[%clk 0:02:46.8]} 6. d3 {[%clk 0:02:56.9]} 6... d6 {[%clk 0:02:46.1]}
7. Ne2 {[%clk 0:02:56.7]} 7... h6 {[%clk 0:02:37.3]} 8. c3 {[%clk 0:02:56.7]}
8... Bc5 {[%clk 0:02:36.6]} 9. Ng3 {[%clk 0:02:56.6]} 9... Bg4 {[%clk 0:02:23]}
10. h3 {[%clk 0:02:56]} 10... Bxf3 {[%clk 0:02:22.4]} 11. Qxf3 {[%clk
0:02:56.9]} 11... Ne7 {[%clk 0:02:18.4]} 12. Be3 {[%clk 0:02:49.9]} 12... c6
{[%clk 0:02:11.4]} 13. Ba4 {[%clk 0:02:49.4]} 13... Qb6 {[%clk 0:02:11]} 14.
Rab1 {[%clk 0:02:23.7]} 14... a5 {[%clk 0:01:52.4]} 15. Bc2 {[%clk 0:02:18.8]}
15... Bxe3 {[%clk 0:01:37.1]} 16. fxe3 {[%clk 0:02:18.5]} 16... d5 {[%clk
0:01:37.6]} 17. Kh2 {[%clk 0:02:12.1]} 17... Rad8 {[%clk 0:01:34.4]} 18. Rfd1
{[%clk 0:01:59.5]} 18... d4 {[%clk 0:01:33.2]} 19. exd4 {[%clk 0:01:58.2]} 19...
exd4 {[%clk 0:01:34.1]} 20. c4 {[%clk 0:01:58.1]} 20... Qc7 {[%clk 0:01:29.5]}
21. Kh1 {[%clk 0:01:53.4]} 21... b5 {[%clk 0:01:25]} 22. b3 {[%clk 0:01:50.2]}
22... b4 {[%clk 0:01:20.7]} 23. Rf1 {[%clk 0:01:49.3]} 23... Qe5 {[%clk
0:01:04]} 24. Bd1 {[%clk 0:01:45.9]} 24... c5 {[%clk 0:00:58.8]} 25. Be2 {[%clk
0:01:45.2]} 25... Ra8 {[%clk 0:00:58.8]} 26. Bd1 {[%clk 0:01:41.4]} 26... Qe6
{[%clk 0:00:52.5]} 27. Ne2 {[%clk 0:01:38.7]} 27... Nd7 {[%clk 0:00:50.8]} 28.
Nf4 {[%clk 0:01:38.5]} 28... Qd6 {[%clk 0:00:51.2]} 29. Qg3 {[%clk 0:01:35.3]}
29... Ng6 {[%clk 0:00:47.4]} 30. Kh2 {[%clk 0:01:21.9]} 30... Nxf4 {[%clk
0:00:45.8]} 31. Rxf4 {[%clk 0:01:17.9]} 31... f6 {[%clk 0:00:38.1]} 32. Rg4
{[%clk 0:00:56.6]} 32... Qe7 {[%clk 0:00:37.2]} 33. Rg6 {[%clk 0:00:54.7]} 33...
Ne5 {[%clk 0:00:37]} 34. Rxh6 {[%clk 0:00:53.6]} 34... f5 {[%clk 0:00:26.7]} 35.
exf5 {[%clk 0:00:48]} 35... Rxf5 {[%clk 0:00:26.5]} 36. Rh5 {[%clk 0:00:40.8]}
36... Raf8 {[%clk 0:00:22.9]} 37. Rxf5 {[%clk 0:00:39.7]} 37... Rxf5 {[%clk
0:00:23.8]} 38. Be2 {[%clk 0:00:28.8]} 38... Rg5 {[%clk 0:00:22.1]} 39. Qf2
{[%clk 0:00:26]} 39... Qd6 {[%clk 0:00:19]} 40. Kh1 {[%clk 0:00:25.1]} 40... Qg6
{[%clk 0:00:17.6]} 41. Rf1 {[%clk 0:00:23.3]} 41... Nxd3 {[%clk 0:00:11.2]} 42.
Qf8+ {[%clk 0:00:21.1]} 42... Kh7 {[%clk 0:00:11.6]} 43. Bxd3 {[%clk 0:00:21.1]}
43... Qxd3 {[%clk 0:00:11.4]} 44. Qf4 {[%clk 0:00:16.6]} 44... Qg6 {[%clk
0:00:11.1]} 45. Qh4+ {[%clk 0:00:15]} 45... Kg8 {[%clk 0:00:10.6]} 46. Qf2
{[%clk 0:00:13.8]} 46... d3 {[%clk 0:00:10]} 47. Rd1 {[%clk 0:00:12.8]} 47...
Rg3 {[%clk 0:00:09.6]} 48. Qxc5 {[%clk 0:00:11.2]} 48... Rxg2 {[%clk 0:00:08.8]}
49. Qd5+ {[%clk 0:00:11.2]} 49... Kh7 {[%clk 0:00:05.7]} 50. Qxg2 {[%clk
0:00:11.3]} 50... Qf5 {[%clk 0:00:05.9]} 51. Rd2 {[%clk 0:00:10.5]} 51... g6
{[%clk 0:00:05.1]} 52. Kh2 {[%clk 0:00:06.2]} 52... Qf4+ {[%clk 0:00:05.1]} 53.
Kh1 {[%clk 0:00:06]} 53... Qf5 {[%clk 0:00:05.5]} 54. Rf2 {[%clk 0:00:05]} 54...
Qe5 {[%clk 0:00:04.8]} 55. Qf1 {[%clk 0:00:04.7]} 55... Qg7 {[%clk 0:00:03.8]}
56. Rf7 {[%clk 0:00:04.9]} 56... d2 {[%clk 0:00:04.6]} 57. Rxg7+ {[%clk
0:00:05.2]} 57... Kxg7 {[%clk 0:00:04.9]} 58. Qe2 {[%clk 0:00:05.9]} 1-0

[Event "Early-Titled-Tuesday-Blitz-February-20-2024"]
[Site "Chess.com"]
[Date "2024.02.20"]
[Round "1"]
[White "bazar-wokzal"]
[Black "Carlitus2004"]
[Result "1-0"]
[WhiteElo "2696"]
[BlackElo "2364"]
[TimeControl "180+1"]
[EndTime "8:08:45 PST"]
[Termination "bazar-wokzal won on time"]

1. e4 {[%clk 0:03:00.9]} 1... Nc6 {[%clk 0:02:58.2]} 2. d4 {[%clk 0:02:58.8]}
2... d5 {[%clk 0:02:56.7]} 3. e5 {[%clk 0:02:58]} 3... Bf5 {[%clk 0:02:55.5]} 4.
Bb5 {[%clk 0:02:51]} 4... e6 {[%clk 0:02:52.9]} 5. c3 {[%clk 0:02:50.2]} 5...
Ne7 {[%clk 0:02:45.3]} 6. Be3 {[%clk 0:02:46.8]} 6... a6 {[%clk 0:02:45.5]} 7.
Ba4 {[%clk 0:02:46.4]} 7... b5 {[%clk 0:02:41.2]} 8. Bc2 {[%clk 0:02:46]} 8...
Bxc2 {[%clk 0:02:40.8]} 9. Qxc2 {[%clk 0:02:45.9]} 9... Nf5 {[%clk 0:02:41.5]}
10. Nd2 {[%clk 0:02:45.1]} 10... Nb8 {[%clk 0:02:19.7]} 11. a4 {[%clk
0:02:23.9]} 11... Nd7 {[%clk 0:02:12.6]} 12. b4 {[%clk 0:02:17.1]} 12... a5
{[%clk 0:02:10.2]} 13. axb5 {[%clk 0:02:15.3]} 13... axb4 {[%clk 0:02:10.7]} 14.
Rxa8 {[%clk 0:02:03.5]} 14... Qxa8 {[%clk 0:02:11.6]} 15. Ne2 {[%clk 0:01:55.4]}
15... bxc3 {[%clk 0:01:54.1]} 16. Qxc3 {[%clk 0:01:47.5]} 16... Qb7 {[%clk
0:01:46.4]} 17. Qd3 {[%clk 0:01:43.3]} 17... Bb4 {[%clk 0:01:41.5]} 18. O-O
{[%clk 0:01:42.1]} 18... Nxe3 {[%clk 0:01:40.4]} 19. fxe3 {[%clk 0:01:41.9]}
19... Bxd2 {[%clk 0:01:39.8]} 20. Qxd2 {[%clk 0:01:41.8]} 20... Qxb5 {[%clk
0:01:40]} 21. Nf4 {[%clk 0:01:31.6]} 21... O-O {[%clk 0:01:38.9]} 22. Nh5 {[%clk
0:01:13.5]} 22... c5 {[%clk 0:01:26.8]} 23. Rf4 {[%clk 0:00:51.5]} 23... Qb1+
{[%clk 0:01:24.2]} 24. Rf1 {[%clk 0:00:49]} 24... Qg6 {[%clk 0:01:15.6]} 25. Nf4
{[%clk 0:00:49.1]} 25... Qe4 {[%clk 0:01:15.4]} 26. Ne2 {[%clk 0:00:45]} 26...
Rb8 {[%clk 0:00:54]} 27. Nc3 {[%clk 0:00:39.9]} 27... Qg6 {[%clk 0:00:53.1]} 28.
Rf3 {[%clk 0:00:36.7]} 28... Ra8 {[%clk 0:00:26]} 29. Rg3 {[%clk 0:00:32.8]}
29... Qf5 {[%clk 0:00:18.4]} 30. Rf3 {[%clk 0:00:31.9]} 30... Qg5 {[%clk
0:00:18.2]} 31. Rg3 {[%clk 0:00:32]} 31... Qh4 {[%clk 0:00:13.2]} 32. Ne2 {[%clk
0:00:14.4]} 32... Ra1+ {[%clk 0:00:07.8]} 33. Kf2 {[%clk 0:00:14.8]} 33... Ra8
{[%clk 0:00:05.4]} 34. Kg1 {[%clk 0:00:13.8]} 34... g6 {[%clk 0:00:04.3]} 35.
Rf3 {[%clk 0:00:12.7]} 35... Ra1+ {[%clk 0:00:04]} 36. Nc1 {[%clk 0:00:05.9]}
36... Qe4 {[%clk 0:00:04.2]} 37. Rf1 {[%clk 0:00:04.2]} 37... Qb1 {[%clk
0:00:03.7]} 38. Qe2 {[%clk 0:00:02.6]} 38... cxd4 {[%clk 0:00:01.9]} 39. exd4
{[%clk 0:00:02.3]} 39... Qe4 {[%clk 0:00:02.8]} 40. Qxe4 {[%clk 0:00:02]} 40...
dxe4 {[%clk 0:00:03.7]} 41. Ne2 {[%clk 0:00:02.4]} 41... Rxf1+ {[%clk
0:00:03.6]} 42. Kxf1 {[%clk 0:00:03.3]} 42... f5 {[%clk 0:00:03.5]} 43. Kf2
{[%clk 0:00:04.2]} 43... Nb6 {[%clk 0:00:03.2]} 44. Nf4 {[%clk 0:00:03.4]} 44...
Kf7 {[%clk 0:00:03.9]} 45. h4 {[%clk 0:00:03.2]} 45... Nd5 {[%clk 0:00:04.8]}
46. Nxd5 {[%clk 0:00:02.8]} 46... exd5 {[%clk 0:00:05.7]} 47. g3 {[%clk
0:00:03.4]} 47... Ke6 {[%clk 0:00:06.3]} 48. Ke3 {[%clk 0:00:03.7]} 48... h6
{[%clk 0:00:06.9]} 49. Kf4 {[%clk 0:00:04.2]} 49... Kf7 {[%clk 0:00:06.8]} 50.
Ke3 {[%clk 0:00:04.3]} 50... g5 {[%clk 0:00:07]} 51. hxg5 {[%clk 0:00:04.4]}
51... hxg5 {[%clk 0:00:07.9]} 52. Ke2 {[%clk 0:00:04.7]} 52... f4 {[%clk
0:00:08.1]} 53. gxf4 {[%clk 0:00:05.1]} 53... gxf4 {[%clk 0:00:09]} 54. Kf2
{[%clk 0:00:05.8]} 54... Ke6 {[%clk 0:00:09.7]} 55. Ke2 {[%clk 0:00:06.3]} 55...
Kf5 {[%clk 0:00:10.5]} 56. Kf2 {[%clk 0:00:06.8]} 56... Kg5 {[%clk 0:00:08.7]}
57. Ke2 {[%clk 0:00:06.8]} 57... f3+ {[%clk 0:00:07]} 58. Ke3 {[%clk 0:00:07]}
58... Kf5 {[%clk 0:00:07]} 59. Kf2 {[%clk 0:00:06.8]} 59... Kf4 {[%clk
0:00:07.7]} 60. e6 {[%clk 0:00:07.2]} 60... e3+ {[%clk 0:00:08.6]} 61. Kf1
{[%clk 0:00:06.7]} 61... f2 {[%clk 0:00:09]} 62. e7 {[%clk 0:00:04.7]} 62... Kf3
{[%clk 0:00:09.4]} 63. e8=Q {[%clk 0:00:04.9]} 63... Kf4 {[%clk 0:00:06.6]} 64.
Qe5+ {[%clk 0:00:04.5]} 64... Kf3 {[%clk 0:00:07.3]} 65. Qxd5+ {[%clk 0:00:05]}
65... Kf4 {[%clk 0:00:08.1]} 66. Qe5+ {[%clk 0:00:05.5]} 66... Kf3 {[%clk
0:00:08.6]} 67. d5 {[%clk 0:00:06]} 1-0

[Event "Early-Titled-Tuesday-Blitz-February-20-2024"]
[Site "Chess.com"]
[Date "2024.02.20"]
[Round "1"]
[White "sokidze"]
[Black "GM_Huschenbeth"]
[Result "0-1"]
[WhiteElo "2780"]
[BlackElo "2483"]
[TimeControl "180+1"]
[EndTime "8:08:54 PST"]
[Termination "GM_Huschenbeth won by resignation"]

1. d4 {[%clk 0:03:00.9]} 1... Nf6 {[%clk 0:02:59.6]} 2. c4 {[%clk 0:03:00.6]}
2... e6 {[%clk 0:02:59.5]} 3. Nf3 {[%clk 0:03:00.5]} 3... d5 {[%clk 0:02:59.2]}
4. g3 {[%clk 0:03:00.6]} 4... dxc4 {[%clk 0:02:54]} 5. Bg2 {[%clk 0:03:00.3]}
5... Bb4+ {[%clk 0:02:49.3]} 6. Bd2 {[%clk 0:02:59.8]} 6... a5 {[%clk
0:02:49.4]} 7. Qc2 {[%clk 0:02:54.6]} 7... Bxd2+ {[%clk 0:02:47.7]} 8. Qxd2
{[%clk 0:02:47.8]} 8... c6 {[%clk 0:02:33.8]} 9. a4 {[%clk 0:02:16.8]} 9... Ne4
{[%clk 0:02:30.5]} 10. Qc2 {[%clk 0:02:13.1]} 10... Nd6 {[%clk 0:02:27.4]} 11.
Ne5 {[%clk 0:02:09.6]} 11... Na6 {[%clk 0:02:26.7]} 12. Nd2 {[%clk 0:01:58.6]}
12... Nb4 {[%clk 0:02:21.1]} 13. Qc1 {[%clk 0:01:57]} 13... Nf5 {[%clk 0:02:09]}
14. Qxc4 {[%clk 0:01:12.6]} 14... Qxd4 {[%clk 0:01:59]} 15. Qxd4 {[%clk
0:01:08.1]} 15... Nxd4 {[%clk 0:01:59.9]} 16. Rc1 {[%clk 0:01:02.9]} 16... f6
{[%clk 0:01:50.6]} 17. Nec4 {[%clk 0:01:00.5]} 17... e5 {[%clk 0:01:47]} 18. Nb6
{[%clk 0:00:44.6]} 18... Rb8 {[%clk 0:01:46.9]} 19. Ndc4 {[%clk 0:00:44.9]}
19... Be6 {[%clk 0:01:12.4]} 20. Nxa5 {[%clk 0:00:40.6]} 20... Ke7 {[%clk
0:01:12.4]} 21. f3 {[%clk 0:00:38.7]} 21... Rhd8 {[%clk 0:00:24.7]} 22. Kf2
{[%clk 0:00:38]} 22... Nb3 {[%clk 0:00:22.2]} 23. Nxb3 {[%clk 0:00:37.6]} 23...
Bxb3 {[%clk 0:00:23.1]} 24. Rc3 {[%clk 0:00:29.4]} 24... Be6 {[%clk 0:00:16.2]}
25. Ke3 {[%clk 0:00:20.5]} 25... Rd4 {[%clk 0:00:15.4]} 26. a5 {[%clk
0:00:10.9]} 26... Rbd8 {[%clk 0:00:14.5]} 27. Ra1 {[%clk 0:00:10.9]} 27... Rd2
{[%clk 0:00:13.7]} 28. Rb1 {[%clk 0:00:08.3]} 28... Nc2+ {[%clk 0:00:12.2]} 29.
Kf2 {[%clk 0:00:08.6]} 29... Nd4 {[%clk 0:00:12.7]} 30. Re3 {[%clk 0:00:08.2]}
30... Bf5 {[%clk 0:00:11]} 31. Ra1 {[%clk 0:00:04.7]} 31... Rxb2 {[%clk
0:00:10.6]} 32. Rd1 {[%clk 0:00:03.2]} 32... Ra2 {[%clk 0:00:04.5]} 33. f4
{[%clk 0:00:03.5]} 33... Rxa5 {[%clk 0:00:03.8]} 34. Nc4 {[%clk 0:00:03]} 34...
Rc5 {[%clk 0:00:03.8]} 35. Na3 {[%clk 0:00:02.4]} 35... Nc2 {[%clk 0:00:02.3]}
36. Rxd8 {[%clk 0:00:01.8]} 36... Kxd8 {[%clk 0:00:01.9]} 37. Nxc2 {[%clk
0:00:01.8]} 37... Bxc2 {[%clk 0:00:02.8]} 38. fxe5 {[%clk 0:00:01.4]} 38... fxe5
{[%clk 0:00:03.7]} 39. Ra3 {[%clk 0:00:01.7]} 39... Ke7 {[%clk 0:00:04]} 40. Ra8
{[%clk 0:00:02]} 40... Rb5 {[%clk 0:00:03.3]} 41. Rh8 {[%clk 0:00:01.8]} 41...
Bg6 {[%clk 0:00:02]} 42. Rg8 {[%clk 0:00:02.1]} 42... Kf7 {[%clk 0:00:02.1]} 43.
Rc8 {[%clk 0:00:02.8]} 43... Rb2 {[%clk 0:00:02.8]} 44. Rc7+ {[%clk 0:00:03.1]}
44... Kf6 {[%clk 0:00:03.5]} 45. Ke3 {[%clk 0:00:03.6]} 45... Bh5 {[%clk
0:00:03.8]} 46. Bf3 {[%clk 0:00:02.2]} 46... Bxf3 {[%clk 0:00:03.9]} 47. Kxf3
{[%clk 0:00:03.1]} 47... Rb3+ {[%clk 0:00:03.1]} 48. e3 {[%clk 0:00:02.4]} 48...
h5 {[%clk 0:00:04]} 49. h4 {[%clk 0:00:02.5]} 49... g5 {[%clk 0:00:04.1]} 50.
Rh7 {[%clk 0:00:02.5]} 50... Kg6 {[%clk 0:00:03.9]} 51. Re7 {[%clk 0:00:02]}
51... gxh4 {[%clk 0:00:04.3]} 52. gxh4 {[%clk 0:00:02.9]} 52... Kf6 {[%clk
0:00:05.1]} 53. Rh7 {[%clk 0:00:03.2]} 53... Rb4 {[%clk 0:00:04.9]} 54. Rh6+
{[%clk 0:00:03.1]} 54... Kf5 {[%clk 0:00:05]} 55. Rxh5+ {[%clk 0:00:04]} 55...
Kg6 {[%clk 0:00:04.8]} 56. Rxe5 {[%clk 0:00:04]} 56... Rxh4 {[%clk 0:00:04.4]}
57. Re7 {[%clk 0:00:04.5]} 57... Rb4 {[%clk 0:00:03.6]} 58. e4 {[%clk 0:00:04]}
58... Kf6 {[%clk 0:00:04.2]} 59. Rc7 {[%clk 0:00:04]} 59... Ke5 {[%clk
0:00:04.7]} 60. Re7+ {[%clk 0:00:03.5]} 60... Kd6 {[%clk 0:00:05.3]} 61. Rh7
{[%clk 0:00:03.4]} 61... Rb1 {[%clk 0:00:03.1]} 62. Ke3 {[%clk 0:00:03.2]} 62...
b5 {[%clk 0:00:02.5]} 63. Rh6+ {[%clk 0:00:02.1]} 63... Kc5 {[%clk 0:00:02.8]}
64. Rh5+ {[%clk 0:00:02.3]} 64... Kc4 {[%clk 0:00:03.2]} 65. e5 {[%clk
0:00:02.4]} 65... Re1+ {[%clk 0:00:03]} 66. Kf4 {[%clk 0:00:02.7]} 66... b4
{[%clk 0:00:03.6]} 67. Kf5 {[%clk 0:00:02.6]} 67... b3 {[%clk 0:00:03.6]} 68.
Rh8 {[%clk 0:00:02.5]} 68... b2 {[%clk 0:00:03.5]} 0-1